[Event "*** Titled Tuesday Blitz"]
[Site "Chess.com"]
[Date "2020.05.12"]
[Round "9"]
[White "BogdanBelyakov89"]
[Black "S2PAc"]
[Result "1/2-1/2"]
[WhiteElo "2590"]
[BlackElo "2770"]
[TimeControl "180+1"]
[EndTime "11:45:19 PDT"]
[Termination "Game drawn by repetition"]

1. e4 {[%clk 0:03:00.9]} 1... e6 {[%clk 0:02:57.8]} 2. d4 {[%clk 0:03:00.5]}
2... d5 {[%clk 0:02:58.7]} 3. Nc3 {[%clk 0:03:01]} 3... Nc6 {[%clk 0:02:58.4]}
4. Nf3 {[%clk 0:02:59.8]} 4... Nf6 {[%clk 0:02:58.3]} 5. e5 {[%clk 0:02:59.5]}
5... Ne4 {[%clk 0:02:58.9]} 6. Ne2 {[%clk 0:02:58.7]} 6... f6 {[%clk 0:02:57.6]}
7. Ng3 {[%clk 0:02:47.6]} 7... fxe5 {[%clk 0:02:57.1]} 8. Nxe5 {[%clk
0:02:35.5]} 8... Nxe5 {[%clk 0:02:49.8]} 9. dxe5 {[%clk 0:02:36.4]} 9... Nc5
{[%clk 0:02:43.7]} 10. h4 {[%clk 0:02:14.1]} 10... Bd7 {[%clk 0:02:37.7]} 11.
Bg5 {[%clk 0:02:06]} 11... Be7 {[%clk 0:02:28.5]} 12. Qh5+ {[%clk 0:02:02.5]}
12... g6 {[%clk 0:02:28.4]} 13. Qg4 {[%clk 0:01:56.5]} 13... Bc6 {[%clk
0:01:43.9]} 14. Be3 {[%clk 0:01:47.8]} 14... Qd7 {[%clk 0:01:38.6]} 15. h5
{[%clk 0:01:42]} 15... g5 {[%clk 0:01:27.6]} 16. h6 {[%clk 0:01:35]} 16... O-O-O
{[%clk 0:01:26.9]} 17. O-O-O {[%clk 0:01:34.6]} 17... Rhg8 {[%clk 0:01:10.2]}
18. Nh5 {[%clk 0:01:25.5]} 18... Rdf8 {[%clk 0:01:10.1]} 19. Nf6 {[%clk
0:01:24.4]} 19... Bxf6 {[%clk 0:01:10.2]} 20. exf6 {[%clk 0:01:22.6]} 20... Ne4
{[%clk 0:01:10.1]} 21. Bd3 {[%clk 0:01:02.6]} 21... Nxf6 {[%clk 0:01:09.1]} 22.
Qg3 {[%clk 0:01:02.8]} 22... Qd6 {[%clk 0:00:59.8]} 23. Bd4 {[%clk 0:01:02.5]}
23... Qxg3 {[%clk 0:00:38.6]} 24. fxg3 {[%clk 0:01:03.4]} 24... Ne4 {[%clk
0:00:39.4]} 25. Bxe4 {[%clk 0:01:02.9]} 25... dxe4 {[%clk 0:00:40.3]} 26. Rdf1
{[%clk 0:00:56]} 26... Rf5 {[%clk 0:00:39.8]} 27. g4 {[%clk 0:00:50.4]} 27...
Rf4 {[%clk 0:00:33.8]} 28. g3 {[%clk 0:00:50.3]} 28... Rf3 {[%clk 0:00:33]} 29.
Rfg1 {[%clk 0:00:30.4]} 29... e5 {[%clk 0:00:30.6]} 30. Bxe5 {[%clk 0:00:28.9]}
30... e3 {[%clk 0:00:31.1]} 31. Rh2 {[%clk 0:00:27.6]} 31... Re8 {[%clk
0:00:29.9]} 32. Bc3 {[%clk 0:00:26.6]} 32... e2 {[%clk 0:00:28.9]} 33. Re1
{[%clk 0:00:25.7]} 33... Bb5 {[%clk 0:00:25.1]} 34. Bd2 {[%clk 0:00:15]} 34...
Rf1 {[%clk 0:00:23.5]} 35. b3 {[%clk 0:00:15.2]} 35... Rd8 {[%clk 0:00:22.1]}
36. c4 {[%clk 0:00:14.8]} 36... Rxe1+ {[%clk 0:00:21.4]} 37. Bxe1 {[%clk
0:00:14.8]} 37... Rd1+ {[%clk 0:00:21.7]} 38. Kc2 {[%clk 0:00:14.9]} 38... Bxc4
{[%clk 0:00:20.5]} 39. bxc4 {[%clk 0:00:14]} 39... Rxe1 {[%clk 0:00:20.8]} 40.
Kd3 {[%clk 0:00:12.3]} 40... Kd7 {[%clk 0:00:19.4]} 41. Rf2 {[%clk 0:00:12]}
41... Ke6 {[%clk 0:00:12.6]} 42. Ke3 {[%clk 0:00:10.9]} 42... Rc1 {[%clk
0:00:09.3]} 43. Rxe2 {[%clk 0:00:10.6]} 43... Ra1 {[%clk 0:00:07.9]} 44. Kd4+
{[%clk 0:00:10.7]} 44... Kd6 {[%clk 0:00:07.9]} 45. Rf2 {[%clk 0:00:10.6]} 45...
Ke6 {[%clk 0:00:07.8]} 46. Rf5 {[%clk 0:00:10.8]} 46... Rxa2 {[%clk 0:00:06.2]}
47. Rxg5 {[%clk 0:00:11.1]} 47... Rh2 {[%clk 0:00:06.2]} 48. Rg7 {[%clk
0:00:11.1]} 48... Rxh6 {[%clk 0:00:06.4]} 49. Rxc7 {[%clk 0:00:11.2]} 49... b6
{[%clk 0:00:06.9]} 50. Rxa7 {[%clk 0:00:11.2]} 50... Kd6 {[%clk 0:00:07]} 51.
Rg7 {[%clk 0:00:10.3]} 51... Kc6 {[%clk 0:00:05.8]} 52. g5 {[%clk 0:00:10.1]}
52... Rh3 {[%clk 0:00:06.3]} 53. g6 {[%clk 0:00:09.3]} 53... hxg6 {[%clk
0:00:07.2]} 54. Rxg6+ {[%clk 0:00:09.4]} 54... Kc7 {[%clk 0:00:07.7]} 55. Kd5
{[%clk 0:00:09.4]} 55... Rh5+ {[%clk 0:00:06.4]} 56. Kd4 {[%clk 0:00:09.7]}
56... Rh1 {[%clk 0:00:06.1]} 57. g4 {[%clk 0:00:10]} 57... Rd1+ {[%clk
0:00:06.1]} 58. Ke5 {[%clk 0:00:10]} 58... Re1+ {[%clk 0:00:06.4]} 59. Kd5
{[%clk 0:00:10.3]} 59... Rd1+ {[%clk 0:00:06.8]} 60. Ke4 {[%clk 0:00:10.4]}
60... Re1+ {[%clk 0:00:07.3]} 61. Kd3 {[%clk 0:00:10.7]} 61... Rd1+ {[%clk
0:00:07.3]} 62. Kc2 {[%clk 0:00:10.9]} 62... Rg1 {[%clk 0:00:07.5]} 63. g5
{[%clk 0:00:10.9]} 63... Rg3 {[%clk 0:00:08]} 64. Rg8 {[%clk 0:00:10.1]} 64...
Kb7 {[%clk 0:00:07.6]} 65. g6 {[%clk 0:00:10.4]} 65... Ka7 {[%clk 0:00:08.1]}
66. g7 {[%clk 0:00:10.6]} 66... Kb7 {[%clk 0:00:08.6]} 67. Kd2 {[%clk 0:00:11]}
67... Ka7 {[%clk 0:00:08.6]} 68. Ke2 {[%clk 0:00:11.3]} 68... Kb7 {[%clk
0:00:08.8]} 69. Kf2 {[%clk 0:00:11.6]} 69... Rg6 {[%clk 0:00:09.2]} 70. Kf3
{[%clk 0:00:11.7]} 70... Ka7 {[%clk 0:00:09.5]} 71. Kf4 {[%clk 0:00:11.1]} 71...
Rg1 {[%clk 0:00:09.4]} 72. Kf5 {[%clk 0:00:11.4]} 72... Rf1+ {[%clk 0:00:09.6]}
73. Ke6 {[%clk 0:00:11.4]} 73... Re1+ {[%clk 0:00:09.9]} 74. Kd6 {[%clk
0:00:11.7]} 74... Rg1 {[%clk 0:00:07.8]} 75. Kc7 {[%clk 0:00:11.1]} 75... Rg2
{[%clk 0:00:07.6]} 76. Kc6 {[%clk 0:00:10.9]} 76... Rg6+ {[%clk 0:00:07.4]} 77.
Kb5 {[%clk 0:00:10.8]} 77... Rg5+ {[%clk 0:00:07.3]} 78. Kb4 {[%clk 0:00:11.1]}
78... Kb7 {[%clk 0:00:07.4]} 79. Kb3 {[%clk 0:00:11]} 79... Rg3+ {[%clk
0:00:07.6]} 80. Kb4 {[%clk 0:00:11.5]} 80... Rg4 {[%clk 0:00:08.1]} 81. Kb5
{[%clk 0:00:11.7]} 81... Rg5+ {[%clk 0:00:06.8]} 82. Kb4 {[%clk 0:00:12]} 82...
Rg4 {[%clk 0:00:07.7]} 83. Kb5 {[%clk 0:00:11.8]} 83... Ka7 {[%clk 0:00:07.4]}
84. Kb4 {[%clk 0:00:12]} 84... Kb7 {[%clk 0:00:06.8]} 1/2-1/2

[Event "*** Titled Tuesday Blitz"]
[Site "Chess.com"]
[Date "2020.05.12"]
[Round "9"]
[White "hongnhung1234"]
[Black "Generalas"]
[Result "0-1"]
[WhiteElo "2256"]
[BlackElo "2385"]
[TimeControl "180+1"]
[EndTime "11:46:09 PDT"]
[Termination "Generalas won by checkmate"]

1. e4 {[%clk 0:03:00.9]} 1... e5 {[%clk 0:02:59.6]} 2. Nf3 {[%clk 0:03:00.3]}
2... Nc6 {[%clk 0:02:59.7]} 3. d4 {[%clk 0:03:00.2]} 3... exd4 {[%clk
0:02:59.5]} 4. Nxd4 {[%clk 0:03:01.1]} 4... Qf6 {[%clk 0:02:58.5]} 5. Be3 {[%clk
0:02:57.4]} 5... Bc5 {[%clk 0:02:57.5]} 6. c3 {[%clk 0:02:56.6]} 6... Nge7
{[%clk 0:02:56.9]} 7. Bc4 {[%clk 0:02:51.3]} 7... O-O {[%clk 0:02:55.6]} 8. O-O
{[%clk 0:02:50.5]} 8... Ne5 {[%clk 0:02:53.5]} 9. Bb3 {[%clk 0:02:46.7]} 9... d5
{[%clk 0:02:48.6]} 10. exd5 {[%clk 0:02:43.9]} 10... Ng4 {[%clk 0:02:42]} 11.
Nd2 {[%clk 0:02:26.9]} 11... Nxe3 {[%clk 0:02:36.3]} 12. fxe3 {[%clk 0:02:27.8]}
12... Qg5 {[%clk 0:02:30.5]} 13. Qf3 {[%clk 0:02:20.1]} 13... Qg6 {[%clk
0:01:27]} 14. e4 {[%clk 0:02:11.6]} 14... Bg4 {[%clk 0:01:18.4]} 15. Qf4 {[%clk
0:02:07.5]} 15... c6 {[%clk 0:00:44.3]} 16. d6 {[%clk 0:02:00.7]} 16... Bxd6
{[%clk 0:00:43.8]} 17. Qf2 {[%clk 0:01:53.3]} 17... Bc5 {[%clk 0:00:39.6]} 18.
Kh1 {[%clk 0:01:48.4]} 18... Rad8 {[%clk 0:00:35.6]} 19. Bc2 {[%clk 0:01:32.6]}
19... Qh5 {[%clk 0:00:33.9]} 20. N2b3 {[%clk 0:01:24.7]} 20... Bb6 {[%clk
0:00:32.5]} 21. Qf4 {[%clk 0:01:19.4]} 21... Ng6 {[%clk 0:00:31.5]} 22. Qg3
{[%clk 0:01:15.9]} 22... Ne5 {[%clk 0:00:30.1]} 23. Rae1 {[%clk 0:01:11]} 23...
Rfe8 {[%clk 0:00:29.8]} 24. Nf5 {[%clk 0:01:04.6]} 24... g6 {[%clk 0:00:25.7]}
25. Ne3 {[%clk 0:00:46.6]} 25... Be6 {[%clk 0:00:25.5]} 26. Bd1 {[%clk
0:00:43.4]} 26... Ng4 {[%clk 0:00:24.7]} 27. Nxg4 {[%clk 0:00:41.5]} 27... Bxg4
{[%clk 0:00:21.9]} 28. Bxg4 {[%clk 0:00:42.4]} 28... Qg5 {[%clk 0:00:21.5]} 29.
Qf3 {[%clk 0:00:41.2]} 29... Re7 {[%clk 0:00:20.3]} 30. Nd4 {[%clk 0:00:39.7]}
30... Bxd4 {[%clk 0:00:19.7]} 31. cxd4 {[%clk 0:00:40.6]} 31... Rxd4 {[%clk
0:00:20.3]} 32. Bh3 {[%clk 0:00:38.1]} 32... Kg7 {[%clk 0:00:19.5]} 33. Qc3
{[%clk 0:00:37.7]} 33... c5 {[%clk 0:00:19.3]} 34. Rd1 {[%clk 0:00:34.8]} 34...
Qe5 {[%clk 0:00:19.4]} 35. Rxd4 {[%clk 0:00:33.6]} 35... cxd4 {[%clk 0:00:20.3]}
36. Qd3 {[%clk 0:00:33.4]} 36... Qxe4 {[%clk 0:00:20.4]} 37. Qxe4 {[%clk
0:00:31.9]} 37... Rxe4 {[%clk 0:00:21.3]} 38. Rd1 {[%clk 0:00:31.5]} 38... f5
{[%clk 0:00:21.6]} 39. Kg1 {[%clk 0:00:31.1]} 39... Kf6 {[%clk 0:00:21.9]} 40.
g3 {[%clk 0:00:31.4]} 40... Ke5 {[%clk 0:00:21.5]} 41. Bf1 {[%clk 0:00:30.9]}
41... Re3 {[%clk 0:00:21.6]} 42. Kf2 {[%clk 0:00:30.9]} 42... g5 {[%clk
0:00:21.5]} 43. Rc1 {[%clk 0:00:28.8]} 43... h5 {[%clk 0:00:20.6]} 44. Rc5+
{[%clk 0:00:28.6]} 44... Ke6 {[%clk 0:00:20.1]} 45. Be2 {[%clk 0:00:27.2]} 45...
g4 {[%clk 0:00:19.6]} 46. Rc7 {[%clk 0:00:26.3]} 46... h4 {[%clk 0:00:19.7]} 47.
gxh4 {[%clk 0:00:25.4]} 47... Rh3 {[%clk 0:00:19.4]} 48. Kg2 {[%clk 0:00:24.7]}
48... d3 {[%clk 0:00:19.3]} 49. Bd1 {[%clk 0:00:23.7]} 49... Ke5 {[%clk
0:00:19.4]} 50. Rxb7 {[%clk 0:00:22.6]} 50... Rxh4 {[%clk 0:00:19.6]} 51. Rd7
{[%clk 0:00:22.1]} 51... Ke4 {[%clk 0:00:19.1]} 52. Re7+ {[%clk 0:00:21.6]}
52... Kf4 {[%clk 0:00:18.9]} 53. Rd7 {[%clk 0:00:22]} 53... Ke3 {[%clk
0:00:19.1]} 54. Ba4 {[%clk 0:00:20.8]} 54... f4 {[%clk 0:00:18.9]} 55. Bb5
{[%clk 0:00:20.6]} 55... f3+ {[%clk 0:00:16.7]} 56. Kg3 {[%clk 0:00:19.5]} 56...
Rh3+ {[%clk 0:00:15.7]} 57. Kxg4 {[%clk 0:00:20]} 57... Rxh2 {[%clk 0:00:16.1]}
58. Rxd3+ {[%clk 0:00:20.4]} 58... Ke4 {[%clk 0:00:16]} 59. Rxf3 {[%clk
0:00:21.3]} 59... Rxb2 {[%clk 0:00:14.8]} 60. Bc6+ {[%clk 0:00:20.2]} 60... Kd4
{[%clk 0:00:14.1]} 61. Rf4+ {[%clk 0:00:21.1]} 61... Kc5 {[%clk 0:00:14.2]} 62.
Rf6 {[%clk 0:00:20]} 62... Rxa2 {[%clk 0:00:13.9]} 63. Be4 {[%clk 0:00:20.5]}
63... Ra4 {[%clk 0:00:13.5]} 64. Kf4 {[%clk 0:00:21.4]} 64... Rd4 {[%clk
0:00:13.2]} 65. Rf5+ {[%clk 0:00:21.6]} 65... Kb4 {[%clk 0:00:12.9]} 66. Ke3
{[%clk 0:00:22.5]} 66... Rd1 {[%clk 0:00:12.9]} 67. Rf7 {[%clk 0:00:22.1]} 67...
a5 {[%clk 0:00:12.6]} 68. Rb7+ {[%clk 0:00:22.4]} 68... Kc3 {[%clk 0:00:12.5]}
69. Ke2 {[%clk 0:00:23.3]} 69... Rg1 {[%clk 0:00:11.7]} 70. Ra7 {[%clk
0:00:23.4]} 70... Kb4 {[%clk 0:00:11.5]} 71. Kd3 {[%clk 0:00:23.7]} 71... Rg3+
{[%clk 0:00:11]} 72. Kd4 {[%clk 0:00:23.9]} 72... Rg4 {[%clk 0:00:11.2]} 73.
Rb7+ {[%clk 0:00:24]} 73... Ka3 {[%clk 0:00:11.4]} 74. Kd3 {[%clk 0:00:23.9]}
74... a4 {[%clk 0:00:10.7]} 75. Kc3 {[%clk 0:00:23.7]} 75... Rxe4 {[%clk
0:00:07.7]} 76. Rb8 {[%clk 0:00:23.3]} 76... Re3+ {[%clk 0:00:07.8]} 77. Kc2
{[%clk 0:00:23.4]} 77... Rb3 {[%clk 0:00:08.7]} 78. Ra8 {[%clk 0:00:16.9]} 78...
Rb4 {[%clk 0:00:08.1]} 79. Kc3 {[%clk 0:00:16.1]} 79... Rb1 {[%clk 0:00:08]} 80.
Kc2 {[%clk 0:00:15.8]} 80... Rb7 {[%clk 0:00:08]} 81. Kc3 {[%clk 0:00:15.5]}
81... Rc7+ {[%clk 0:00:08.2]} 82. Kd2 {[%clk 0:00:15.4]} 82... Kb3 {[%clk
0:00:08.7]} 83. Rb8+ {[%clk 0:00:15.6]} 83... Ka2 {[%clk 0:00:09.1]} 84. Ra8
{[%clk 0:00:15]} 84... a3 {[%clk 0:00:09.7]} 85. Rb8 {[%clk 0:00:15.2]} 85...
Rc6 {[%clk 0:00:10.2]} 86. Rb7 {[%clk 0:00:14.4]} 86... Ka1 {[%clk 0:00:10.6]}
87. Rb8 {[%clk 0:00:13.5]} 87... Ra6 {[%clk 0:00:10.6]} 88. Kc2 {[%clk 0:00:12]}
88... Rc6+ {[%clk 0:00:10.7]} 89. Kb3 {[%clk 0:00:11.4]} 89... a2 {[%clk
0:00:10.6]} 90. Ka3 {[%clk 0:00:09.7]} 90... Ra6+ {[%clk 0:00:09.8]} 91. Kb3
{[%clk 0:00:09.9]} 91... Kb1 {[%clk 0:00:09.9]} 92. Kc3+ {[%clk 0:00:08.7]}
92... Kc1 {[%clk 0:00:10.1]} 93. Rg8 {[%clk 0:00:06]} 93... a1=Q+ {[%clk
0:00:09.8]} 94. Kd3 {[%clk 0:00:06.6]} 94... Qb1+ {[%clk 0:00:09.6]} 95. Kd4
{[%clk 0:00:06.1]} 95... Qb2+ {[%clk 0:00:09.7]} 96. Kc5 {[%clk 0:00:06.6]}
96... Qc3+ {[%clk 0:00:08.8]} 97. Kd5 {[%clk 0:00:06.7]} 97... Qb3+ {[%clk
0:00:08.9]} 98. Kc5 {[%clk 0:00:06]} 98... Qxg8 {[%clk 0:00:09.8]} 99. Kb4
{[%clk 0:00:06.4]} 99... Qb8+ {[%clk 0:00:09.7]} 100. Kc3 {[%clk 0:00:05.8]}
100... Qc7+ {[%clk 0:00:10]} 101. Kd4 {[%clk 0:00:05.8]} 101... Ra4+ {[%clk
0:00:10]} 102. Ke3 {[%clk 0:00:06.7]} 102... Qe5+ {[%clk 0:00:09.1]} 103. Kd3
{[%clk 0:00:06.4]} 103... Ra3+ {[%clk 0:00:08.9]} 104. Kc4 {[%clk 0:00:05.5]}
104... Rc3+ {[%clk 0:00:09.8]} 105. Kb4 {[%clk 0:00:05.8]} 105... Qc5+ {[%clk
0:00:10.6]} 106. Ka4 {[%clk 0:00:06.4]} 106... Ra3# {[%clk 0:00:11.3]} 0-1

[Event "*** Titled Tuesday Blitz"]
[Site "Chess.com"]
[Date "2020.05.12"]
[Round "9"]
[White "Radzio1987"]
[Black "1stSecond"]
[Result "1-0"]
[WhiteElo "2893"]
[BlackElo "2717"]
[TimeControl "180+1"]
[EndTime "11:46:12 PDT"]
[Termination "Radzio1987 won by resignation"]

1. c4 {[%clk 0:02:56.6]} 1... e6 {[%clk 0:02:59.6]} 2. Nc3 {[%clk 0:02:56.3]}
2... d5 {[%clk 0:02:58.8]} 3. d4 {[%clk 0:02:56.5]} 3... Nf6 {[%clk 0:02:58.5]}
4. cxd5 {[%clk 0:02:55.8]} 4... exd5 {[%clk 0:02:58.7]} 5. Bg5 {[%clk
0:02:55.4]} 5... c6 {[%clk 0:02:58.2]} 6. e3 {[%clk 0:02:55.6]} 6... Be7 {[%clk
0:02:58.5]} 7. Bd3 {[%clk 0:02:55.4]} 7... Nbd7 {[%clk 0:02:56.6]} 8. Qc2 {[%clk
0:02:52.7]} 8... Nh5 {[%clk 0:02:56.5]} 9. Bxe7 {[%clk 0:02:49.7]} 9... Qxe7
{[%clk 0:02:57.4]} 10. O-O-O {[%clk 0:02:49]} 10... Nb6 {[%clk 0:02:56.9]} 11.
Kb1 {[%clk 0:02:49.1]} 11... Be6 {[%clk 0:02:39.8]} 12. Rc1 {[%clk 0:02:46.7]}
12... g6 {[%clk 0:02:13.6]} 13. Nf3 {[%clk 0:02:46.2]} 13... Ng7 {[%clk
0:02:08]} 14. Rhe1 {[%clk 0:02:39.1]} 14... O-O {[%clk 0:02:01]} 15. h4 {[%clk
0:02:26.5]} 15... Bg4 {[%clk 0:01:45.9]} 16. Ne5 {[%clk 0:02:22.6]} 16... Bf5
{[%clk 0:01:35]} 17. Bxf5 {[%clk 0:02:21.6]} 17... Nxf5 {[%clk 0:01:35.7]} 18.
h5 {[%clk 0:02:21.9]} 18... Nd7 {[%clk 0:01:34.4]} 19. Nxd7 {[%clk 0:02:02.8]}
19... Qxd7 {[%clk 0:01:35.3]} 20. Rh1 {[%clk 0:02:02.7]} 20... Nd6 {[%clk
0:01:26.6]} 21. Rh3 {[%clk 0:01:55.8]} 21... Qf5 {[%clk 0:01:24.6]} 22. Qxf5
{[%clk 0:01:17]} 22... Nxf5 {[%clk 0:01:24.2]} 23. Rch1 {[%clk 0:01:16.9]} 23...
g5 {[%clk 0:01:09.1]} 24. Rf3 {[%clk 0:01:14]} 24... Nd6 {[%clk 0:00:59.4]} 25.
Rf6 {[%clk 0:01:10.9]} 25... Ne8 {[%clk 0:00:49.5]} 26. Rf5 {[%clk 0:01:04.1]}
26... h6 {[%clk 0:00:50]} 27. Kc2 {[%clk 0:00:33]} 27... f6 {[%clk 0:00:48.3]}
28. Kd3 {[%clk 0:00:24.1]} 28... Nd6 {[%clk 0:00:47.6]} 29. Rf3 {[%clk
0:00:24.2]} 29... Rae8 {[%clk 0:00:43.2]} 30. Rfh3 {[%clk 0:00:23.7]} 30... f5
{[%clk 0:00:41]} 31. b3 {[%clk 0:00:18.9]} 31... Ne4 {[%clk 0:00:36.1]} 32. Nxe4
{[%clk 0:00:18.1]} 32... Rxe4 {[%clk 0:00:26.9]} 33. g3 {[%clk 0:00:17.1]} 33...
Kg7 {[%clk 0:00:20.6]} 34. R3h2 {[%clk 0:00:17]} 34... Kf6 {[%clk 0:00:17.4]}
35. Rg2 {[%clk 0:00:16.9]} 35... g4 {[%clk 0:00:15.7]} 36. Rc1 {[%clk
0:00:15.3]} 36... Kg5 {[%clk 0:00:15.5]} 37. Rh2 {[%clk 0:00:15.6]} 37... Re7
{[%clk 0:00:12.4]} 38. Rhh1 {[%clk 0:00:15.6]} 38... Rc8 {[%clk 0:00:11.4]} 39.
Rc2 {[%clk 0:00:15.1]} 39... Rec7 {[%clk 0:00:11]} 40. b4 {[%clk 0:00:15.2]}
40... b6 {[%clk 0:00:10]} 41. a3 {[%clk 0:00:11.9]} 41... c5 {[%clk 0:00:10.1]}
42. bxc5 {[%clk 0:00:12]} 42... bxc5 {[%clk 0:00:11]} 43. dxc5 {[%clk
0:00:10.5]} 43... Rxc5 {[%clk 0:00:11.9]} 44. Rhc1 {[%clk 0:00:07.4]} 44... Rxc2
{[%clk 0:00:10.5]} 45. Rxc2 {[%clk 0:00:08.3]} 45... Rb8 {[%clk 0:00:05.6]} 46.
Kd4 {[%clk 0:00:06.9]} 46... Rb3 {[%clk 0:00:03.5]} 47. Ra2 {[%clk 0:00:06.7]}
47... Rb5 {[%clk 0:00:03.2]} 48. a4 {[%clk 0:00:06.5]} 48... Ra5 {[%clk
0:00:02.8]} 49. Kc3 {[%clk 0:00:06.5]} 49... Rc5+ {[%clk 0:00:01.1]} 50. Kd4
{[%clk 0:00:05.8]} 50... Ra5 {[%clk 0:00:01.6]} 51. Kc3 {[%clk 0:00:06]} 51...
Rc5+ {[%clk 0:00:01.8]} 52. Kb4 {[%clk 0:00:06.4]} 52... Rc4+ {[%clk 0:00:01.9]}
53. Kb5 {[%clk 0:00:06.6]} 53... Kxh5 {[%clk 0:00:02]} 54. Rd2 {[%clk
0:00:06.6]} 54... Rc7 {[%clk 0:00:01.6]} 55. Rxd5 {[%clk 0:00:06.1]} 55... Kg5
{[%clk 0:00:02.2]} 56. Rd2 {[%clk 0:00:06.2]} 56... Rb7+ {[%clk 0:00:02.4]} 57.
Ka6 {[%clk 0:00:05.6]} 57... Rf7 {[%clk 0:00:02.6]} 58. a5 {[%clk 0:00:05.8]}
58... h5 {[%clk 0:00:03.1]} 59. Rb2 {[%clk 0:00:05.2]} 59... h4 {[%clk 0:00:04]}
60. gxh4+ {[%clk 0:00:05.4]} 60... Kxh4 {[%clk 0:00:04.9]} 61. Rb7 {[%clk
0:00:05.8]} 61... Rf6+ {[%clk 0:00:03.8]} 62. Kxa7 {[%clk 0:00:06]} 62... f4
{[%clk 0:00:04.7]} 63. exf4 {[%clk 0:00:04.3]} 63... Rxf4 {[%clk 0:00:05.6]} 64.
Rb2 {[%clk 0:00:04.3]} 64... Kh3 {[%clk 0:00:04.3]} 65. a6 {[%clk 0:00:04.2]}
65... Kg2 {[%clk 0:00:04.4]} 66. Kb8 {[%clk 0:00:04]} 66... Rf8+ {[%clk
0:00:04.8]} 67. Kc7 {[%clk 0:00:03.8]} 67... Rf7+ {[%clk 0:00:05.3]} 68. Kb6
{[%clk 0:00:04]} 68... Rf6+ {[%clk 0:00:05.4]} 69. Ka5 {[%clk 0:00:04]} 69...
Rf5+ {[%clk 0:00:05.9]} 70. Ka4 {[%clk 0:00:03.1]} 70... Rf4+ {[%clk 0:00:06.2]}
71. Kb5 {[%clk 0:00:02.6]} 71... Rf5+ {[%clk 0:00:06.3]} 72. Kc6 {[%clk
0:00:02.8]} 72... Rf6+ {[%clk 0:00:06.4]} 73. Kb7 {[%clk 0:00:03]} 73... Rf7+
{[%clk 0:00:06.8]} 74. Kc8 {[%clk 0:00:03.2]} 74... Rf8+ {[%clk 0:00:05.1]} 75.
Kd7 {[%clk 0:00:03]} 75... Rf7+ {[%clk 0:00:05.1]} 76. Ke6 {[%clk 0:00:03]}
76... Ra7 {[%clk 0:00:03.2]} 77. Ra2 {[%clk 0:00:03.2]} 77... Ra8 {[%clk
0:00:01.9]} 78. Kf5 {[%clk 0:00:02.2]} 78... Kf3 {[%clk 0:00:01.9]} 79. Ra3+
{[%clk 0:00:01.4]} 79... Kxf2 {[%clk 0:00:02.1]} 80. Kxg4 {[%clk 0:00:01.9]}
80... Ke2 {[%clk 0:00:02.6]} 81. Kf5 {[%clk 0:00:02.3]} 81... Kd2 {[%clk
0:00:03.2]} 82. Ke6 {[%clk 0:00:02.6]} 82... Kc2 {[%clk 0:00:04.1]} 83. Kd7
{[%clk 0:00:02.7]} 83... Kb2 {[%clk 0:00:04.7]} 84. Ra5 {[%clk 0:00:02.5]} 84...
Kb3 {[%clk 0:00:05.1]} 85. Kc7 {[%clk 0:00:02.8]} 85... Kb4 {[%clk 0:00:04.9]}
86. Ra1 {[%clk 0:00:03]} 86... Kb5 {[%clk 0:00:04.3]} 87. Kb7 {[%clk 0:00:03.2]}
87... Rh8 {[%clk 0:00:04.8]} 88. Rb1+ {[%clk 0:00:03.7]} 88... Ka5 {[%clk
0:00:04.8]} 89. a7 {[%clk 0:00:02.7]} 89... Rh7+ {[%clk 0:00:05.2]} 90. Kb8
{[%clk 0:00:02.5]} 90... Rh8+ {[%clk 0:00:05.5]} 91. Kc7 {[%clk 0:00:02.5]}
91... Rh7+ {[%clk 0:00:06]} 92. Kb8 {[%clk 0:00:02.8]} 92... Rh8+ {[%clk
0:00:05.9]} 93. Kb7 {[%clk 0:00:03.2]} 93... Rh7+ {[%clk 0:00:06.3]} 94. Kc6
{[%clk 0:00:02.9]} 94... Rh6+ {[%clk 0:00:05.8]} 95. Kc5 {[%clk 0:00:03.2]}
95... Rh5+ {[%clk 0:00:05.6]} 96. Kd4 {[%clk 0:00:03]} 96... Rh4+ {[%clk
0:00:05.9]} 97. Ke3 {[%clk 0:00:03.2]} 97... Rh3+ {[%clk 0:00:04.7]} 98. Kf2
{[%clk 0:00:02.7]} 98... Rh8 {[%clk 0:00:05.2]} 99. Rb8 {[%clk 0:00:02.6]} 1-0

[Event "*** Titled Tuesday Blitz"]
[Site "Chess.com"]
[Date "2020.05.12"]
[Round "10"]
[White "SameerMujumdar"]
[Black "DishonorOnYourCow"]
[Result "0-1"]
[WhiteElo "2191"]
[BlackElo "2339"]
[TimeControl "180+1"]
[EndTime "11:48:33 PDT"]
[Termination "DishonorOnYourCow won by resignation"]

1. e4 {[%clk 0:03:00.9]} 1... c5 {[%clk 0:02:59.4]} 2. Nc3 {[%clk 0:02:59.2]}
2... Nc6 {[%clk 0:02:57.2]} 3. g3 {[%clk 0:02:58.9]} 3... g6 {[%clk 0:02:56.3]}
4. Bg2 {[%clk 0:02:59.8]} 4... Bg7 {[%clk 0:02:56.2]} 5. d3 {[%clk 0:03:00.2]}
5... d6 {[%clk 0:02:55]} 6. Be3 {[%clk 0:03:00.1]} 6... e6 {[%clk 0:02:54]} 7.
Qd2 {[%clk 0:02:59.8]} 7... Nge7 {[%clk 0:02:54.2]} 8. Bh6 {[%clk 0:02:59.3]}
8... Bxh6 {[%clk 0:02:51.8]} 9. Qxh6 {[%clk 0:03:00.2]} 9... Ng8 {[%clk
0:02:52.2]} 10. Qd2 {[%clk 0:02:56.4]} 10... Nf6 {[%clk 0:02:52]} 11. h3 {[%clk
0:02:56.2]} 11... a6 {[%clk 0:02:47.8]} 12. O-O-O {[%clk 0:02:45.8]} 12... Rb8
{[%clk 0:02:35.3]} 13. f4 {[%clk 0:02:43.2]} 13... Nd4 {[%clk 0:02:27.5]} 14.
Nce2 {[%clk 0:02:41.5]} 14... b5 {[%clk 0:02:22.2]} 15. Nxd4 {[%clk 0:02:38.6]}
15... cxd4 {[%clk 0:02:23.1]} 16. e5 {[%clk 0:02:36.8]} 16... dxe5 {[%clk
0:02:20.6]} 17. fxe5 {[%clk 0:02:36.4]} 17... Nd5 {[%clk 0:02:20.5]} 18. Bxd5
{[%clk 0:02:28.7]} 18... Qxd5 {[%clk 0:02:19.7]} 19. Kb1 {[%clk 0:02:29.6]}
19... Qxh1 {[%clk 0:02:16.3]} 0-1

[Event "*** Titled Tuesday Blitz"]
[Site "Chess.com"]
[Date "2020.05.12"]
[Round "10"]
[White "DanilNajdin"]
[Black "bmt011"]
[Result "1-0"]
[WhiteElo "2287"]
[BlackElo "2089"]
[TimeControl "180+1"]
[EndTime "11:49:10 PDT"]
[Termination "DanilNajdin won by resignation"]

1. e4 {[%clk 0:03:00.9]} 1... e6 {[%clk 0:02:59.4]} 2. d4 {[%clk 0:02:57]} 2...
d5 {[%clk 0:02:59.8]} 3. Nd2 {[%clk 0:02:57.4]} 3... Nc6 {[%clk 0:02:57.8]} 4.
Ngf3 {[%clk 0:02:54.8]} 4... Nf6 {[%clk 0:02:56.5]} 5. e5 {[%clk 0:02:54]} 5...
Nd7 {[%clk 0:02:56.5]} 6. c3 {[%clk 0:02:53.8]} 6... f6 {[%clk 0:02:56.4]} 7.
exf6 {[%clk 0:02:54.1]} 7... Qxf6 {[%clk 0:02:53.3]} 8. Bd3 {[%clk 0:02:54.6]}
8... Bd6 {[%clk 0:02:53.4]} 9. O-O {[%clk 0:02:54.4]} 9... O-O {[%clk
0:02:53.8]} 10. Re1 {[%clk 0:02:50.1]} 10... e5 {[%clk 0:02:44.5]} 11. Qb3
{[%clk 0:02:49.2]} 11... Nb6 {[%clk 0:02:01.3]} 12. Ne4 {[%clk 0:02:47]} 12...
Qf7 {[%clk 0:01:38.8]} 13. Neg5 {[%clk 0:02:44.2]} 13... Qf6 {[%clk 0:01:30.4]}
14. Nxh7 {[%clk 0:02:43.2]} 1-0